fUSD/lending_fUSD_20250427
["ID","MTS","AMOUNT","RATE_DAILY","PERIOD"]
[359172939,1745770259180,-206.05754888,0.00019985,2]
[359172940,1745770259192,-480.0,0.00019985,2]
[359172941,1745770259203,-480.0,0.00019985,2]
[359172942,1745770259215,-480.0,0.00019985,2]
[359172943,1745770259226,-480.0,0.00019985,2]
[359172944,1745770259237,-480.0,0.00019985,2]
[359172945,1745770259249,-480.0,0.00019985,2]
[359172946,1745770259261,-480.0,0.00019985,2]
[359172947,1745770259273,-480.0,0.00019985,2]
[359172948,1745770259285,-480.0,0.00019985,2]
[359172949,1745770259296,-480.0,0.00019985,2]
[359172950,1745770259308,-480.0,0.00019985,2]
[359172951,1745770259319,-480.0,0.00019985,2]
[359172952,1745770259331,-480.0,0.00019985,2]
[359172953,1745770259342,-480.0,0.00019985,2]
[359172954,1745770259353,-480.0,0.00019985,2]
[359172955,1745770259364,-480.0,0.00019985,2]
[359172956,1745770259376,-299.14475113,0.00019985,2]
[359172957,1745770259387,-999.0,0.00019985,2]
[359172958,1745770259399,-480.0,0.00019985,2]
[359172959,1745770259410,-480.0,0.00019985,2]
[359172960,1745770259422,-1490.01,0.00019985,2]
[359172961,1745770259433,-151.0,0.00019985,2]
[359172962,1745770259444,-151.0,0.00019985,2]
[359172963,1745770259455,-480.0,0.00019985,2]
[359172964,1745770259467,-480.0,0.00019985,2]
[359172965,1745770259478,-480.0,0.00019985,2]
[359172966,1745770259489,-514.29,0.00019985,2]
[359172967,1745770259502,-483.05070972,0.00019985,2]
[359172968,1745770259513,-480.0,0.00019985,2]
[359172969,1745770259525,-480.0,0.00019985,2]
[359172970,1745770259536,-1867.17,0.00019985,2]
[359172971,1745770259551,-480.0,0.00019985,2]
[359172972,1745770259563,-33173.83,0.00019985,2]
[359172973,1745770259574,-33173.83,0.00019985,2]
[359172974,1745770259587,-480.0,0.00019985,2]
[359172975,1745770259599,-480.0,0.00019985,2]
[359172976,1745770259611,-480.0,0.00019985,2]
[359172977,1745770259623,-480.0,0.00019985,2]
[359172978,1745770259635,-6154.8,0.00019985,2]
[359172979,1745770259646,-6154.8,0.00019985,2]
[359172980,1745770259658,-480.0,0.00019985,2]
[359172981,1745770259669,-2897.74,0.00019985,2]
[359172982,1745770259681,-2897.74,0.00019985,2]
[359172983,1745770259692,-480.0,0.00019985,2]
[359172984,1745770259703,-1084.05,0.00019985,2]
[359172985,1745770259714,-1084.05,0.00019985,2]
[359172986,1745770259726,-480.0,0.00019985,2]
[359172987,1745770259737,-480.0,0.00019985,2]
[359172988,1745770259748,-480.0,0.00019985,2]
[359172989,1745770259760,-480.0,0.00019985,2]
[359172990,1745770259771,-480.0,0.00019985,2]
[359172991,1745770259782,-480.0,0.00019985,2]
[359172992,1745770259794,-480.0,0.00019985,2]
[359172993,1745770259805,-480.0,0.00019985,2]
[359172994,1745770259816,-710.73,0.00019985,2]
[359172995,1745770259828,-480.0,0.00019985,2]
[359172996,1745770259839,-480.0,0.00019985,2]
[359172997,1745770259851,-480.0,0.00019985,2]
[359172998,1745770259863,-480.0,0.00019985,2]
[359172999,1745770259876,-480.0,0.00019985,2]
[359173000,1745770259886,-480.0,0.00019985,2]
[359173001,1745770259899,-480.0,0.00019985,2]
[359173002,1745770259910,-480.0,0.00019985,2]
[359173003,1745770259922,-480.0,0.00019985,2]
[359173004,1745770259934,-480.0,0.00019985,2]
[359173005,1745770259946,-480.0,0.00019985,2]
[359173006,1745770259959,-480.0,0.00019985,2]
[359173007,1745770259971,-480.0,0.00019985,2]
[359173008,1745770259982,-480.0,0.00019985,2]
[359173009,1745770259993,-265.55015817,0.00019985,2]
[359173010,1745770260005,-229.901068,0.00019985,2]
[359173011,1745770260017,-480.0,0.00019985,2]
[359173012,1745770260028,-472.98512392,0.00019985,2]
[359173013,1745770260039,-480.0,0.00019985,2]
[359173014,1745770260051,-825.63,0.00019985,2]
[359173015,1745770260060,-825.63,0.00019985,2]
[359173016,1745770260071,-480.0,0.00019985,2]
[359173017,1745770260080,-480.0,0.00019985,2]
[359173018,1745770260090,-2259.01,0.00019985,2]
[359173019,1745770260100,-480.0,0.00019985,2]
[359173020,1745770260110,-32372.54,0.00019985,2]
[359173021,1745770260120,-32372.54,0.00019985,2]
[359173022,1745770260129,-480.0,0.00019985,2]
[359173023,1745770260139,-480.0,0.00019985,2]
[359173024,1745770260148,-480.0,0.00019985,2]
[359173025,1745770260157,-480.0,0.00019985,2]
[359173026,1745770260166,-480.0,0.00019985,2]
[359173027,1745770260175,-480.0,0.00019985,2]
[359173028,1745770260185,-2573.1,0.00019985,2]
[359173029,1745770260195,-2433.66972274,0.00019985,2]
[359173030,1745770285823,316.8,0.00036986,60]
[359173032,1745770405561,151.0,0.00019986,7]
[359173033,1745770405886,151.0,0.00019986,7]
[359173034,1745770474912,1212.7473569,0.00036986,60]
[359173035,1745770505771,1577.05,0.00019,2]
[359173036,1745770507515,1577.05,0.00019,2]
[359173037,1745770509194,407.39695193,0.00019,2]
[359173038,1745770509219,1169.65304807,0.00019,2]
[359173039,1745770510863,1577.05,0.00019,2]
[359173040,1745770512648,1577.05,0.00019,2]
[359173041,1745770536307,206.39,0.00015154,2]
[359173042,1745770557154,14214.04068829,0.00019231,2]
[359173043,1745770610009,2785.316482,0.00036986,60]
[359173044,1745770731436,10000.0,0.00036986,60]
[359173045,1745770776445,406.77,0.00017025,2]
[359173046,1745770776502,406.77,0.00019288,2]
[359173047,1745771127999,949.92565338,0.00011,2]
[359173048,1745771136500,5081.11506514,9e-05,2]
[359173049,1745771150057,150.0,0.00018901,7]
[359173050,1745771155256,10220.19671165,6.94e-05,2]
[359173051,1745771162736,5867.23731699,8e-05,2]
[359173052,1745771270896,194.36,0.00019178,2]
[359173056,1745771320023,7033.00657047,0.00015,5]
[359173062,1745771408887,1403.68509172,0.00019,4]
[359173071,1745771431980,-166.41,0.00019474,2]
[359173072,1745771431991,-250.0,0.00019479,2]
[359173073,1745771432001,-200.0,0.00019484,2]
[359173074,1745771432011,-427.40180349,0.00019703,2]
[359173075,1745771432034,-356.39,0.00019703,2]
[359173076,1745771432245,-8.98843097,0.00019703,2]
[359173077,1745771432254,-150.0,0.0001981,2]
[359173078,1745771432264,-150.0,0.00019859,2]
[359173079,1745771432273,-108.66648658,0.00019859,2]
[359173123,1745771438367,-191.33351342,0.00019859,2]
[359173125,1745771438377,-2453.5286,0.0001986,2]
[359173127,1745771438387,-547.2211,0.0001986,2]
[359173129,1745771438395,-3251.59767879,0.0001986,2]
[359173161,1745771440612,-277.83185,0.0001986,2]
[359173162,1745771440667,-7296.60307121,0.0001986,2]
[359173163,1745771440677,-202.72905354,0.00019866,2]
[359173164,1745771440687,-178.61948713,0.00019866,2]
[359173165,1745771440696,-4965.9037,0.00019866,2]
[359173166,1745771440706,-5264.1828,0.00019866,2]
[359173167,1745771440715,-2375.4535,0.00019866,2]
[359173168,1745771440724,-1294.5185,0.00019866,2]
[359173169,1745771440733,-161.7485,0.00019867,2]
[359173170,1745771440743,-1793.1334,0.00019867,2]
[359173171,1745771440752,-862.3434,0.00019867,2]
[359173172,1745771440761,-344.3544,0.00019867,2]
[359173173,1745771440770,-407.39695193,0.0001987,2]
[359173174,1745771440779,-23712.18689558,0.0001987,2]
[359173200,1745771443342,-145284.79231193,0.0001987,2]
[359173201,1745771443353,-6141.53740692,0.0001987,2]
[359173217,1745771445957,-9392.69999999,0.0001987,2]
[359173218,1745771446223,-4986.88202531,0.0001987,2]
[359173219,1745771446381,-3379.84,0.0001987,2]
[359173220,1745771446392,-5999.59622604,0.0001987,2]
[359173228,1745771553147,1000.0,0.00018938,2]
[359173230,1745771634524,230.0,0.0001899,2]
[359173232,1745771781501,250.0,0.00017,2]
[359173233,1745771782585,173.32111187,0.00019,2]
[359173234,1745771782609,126.67888813,0.00019,2]
[359173235,1745771935263,366.09,0.00017051,2]
[359173236,1745771935458,366.09,0.00019315,2]
[359173237,1745772085560,396.41,0.000191,2]
[359173238,1745772227325,507.17,0.00018937,2]
[359173239,1745772232354,200.0,0.0001935,2]
[359173240,1745772291598,150.0,0.00018933,7]
[359173241,1745772310959,2340.17,0.00018937,2]
[359173242,1745772366194,500.0,0.00036986,60]
[359173243,1745772450696,250.0,0.00018963,2]
[359173244,1745772490255,-186.50630611,0.0001939,2]
[359173245,1745772493887,-180.51226124,0.0001939,2]
[359173246,1745772497062,-288.94012633,0.0001939,2]
[359173247,1745772502437,-201.94801831,0.0001939,2]
[359173248,1745772510838,150.0,0.00018959,2]
[359173249,1745772510862,5354.55636471,0.00018959,2]
[359173250,1745772511154,7221.28363529,0.00018959,2]
[359173251,1745772581015,1000.0,0.00018903,2]
[359173252,1745772608541,4583.66,0.00018903,2]
[359173253,1745772609114,-150.0,0.00019364,2]
[359173254,1745772618020,654.1,0.00018903,2]
[359173255,1745772632172,-702.94656757,0.00019679,2]
[359173256,1745772632182,-1200.0,0.00019679,2]
[359173257,1745772632191,-300.0,0.00019679,2]
[359173258,1745772632201,-46865.40131367,0.0001968,2]
[359173263,1745772632517,-500.0,0.00019679,2]
[359173264,1745772632526,-500.0,0.00019679,2]
[359173265,1745772632535,-401.39584113,0.00019679,2]
[359173266,1745772632544,-501.76483998,0.00019679,2]
[359173269,1745772632554,-4826.24230955,0.0001968,2]
[359173271,1745772632564,-288.84781366,0.000197,2]
[359173273,1745772632573,-150.0,0.00019813,2]
[359173275,1745772632582,-150.0,0.00019863,2]
[359173277,1745772632591,-1807.37846937,0.00019863,2]
[359173279,1745772632600,-261.39043565,0.00019864,2]
[359173281,1745772632610,-39204.0816,0.00019864,2]
[359173283,1745772632619,-202.72905354,0.00019865,2]
[359173285,1745772632628,-261.39043557,0.00019868,2]
[359173287,1745772632637,-173.32111187,0.0001987,2]
[359173289,1745772632646,-80339.93423523,0.0001987,2]
[359173291,1745772632656,-158.0,0.0001987,2]
[359173293,1745772632664,-263.23973991,0.0001987,2]
[359173295,1745772632674,-261.39043557,0.00019872,2]
[359173297,1745772632684,-2316.39467375,0.00019874,2]
[359173299,1745772632693,-261.39043557,0.00019876,2]
[359173300,1745772632703,-261.39043557,0.0001988,2]
[359173301,1745772632712,-261.39043557,0.00019884,2]
[359173302,1745772632722,-165.01694049,0.00019886,2]
[359173303,1745772632731,-261.39043557,0.00019888,2]
[359173304,1745772632740,-261.39043557,0.00019892,2]
[359173305,1745772632749,-165.01694048,0.00019893,2]
[359173306,1745772632758,-261.39043557,0.00019896,2]
[359173307,1745772632767,-850.0,0.00019899,2]
[359173308,1745772632776,-165.01694048,0.000199,2]
[359173309,1745772632785,-2726.21180362,0.000199,2]
[359173310,1745772632795,-261.39043557,0.000199,2]
[359173311,1745772632804,-150.0,0.00019946,2]
[359173312,1745772632813,-207.4,0.00019953,2]
[359173313,1745772632822,-211.85,0.00019954,2]
[359173314,1745772632831,-211.85,0.00019955,2]
[359173315,1745772632840,-164.2541275,0.00019963,2]
[359173316,1745772632850,-161.86450353,0.00019963,2]
[359173317,1745772632859,-112514.12242848,0.00019964,2]
[359173318,1745772632869,-517.87,0.00019964,2]
[359173319,1745772632878,-480.0,0.00019964,2]
[359173320,1745772632887,-480.0,0.00019964,2]
[359173321,1745772632897,-480.0,0.00019964,2]
[359173322,1745772632906,-480.0,0.00019964,2]
[359173323,1745772632915,-500.0,0.00019964,2]
[359173324,1745772632926,-480.0,0.00019964,2]
[359173325,1745772632935,-500.0,0.00019964,2]
[359173326,1745772632944,-500.0,0.00019964,2]
[359173327,1745772632954,-480.0,0.00019964,2]
[359173328,1745772632963,-515.86442369,0.00019964,2]
[359173329,1745772632973,-500.0,0.00019964,2]
[359173330,1745772632982,-480.0,0.00019964,2]
[359173331,1745772632992,-500.0,0.00019964,2]
[359173332,1745772633002,-480.0,0.00019964,2]
[359173333,1745772633011,-500.0,0.00019964,2]
[359173334,1745772633021,-500.0,0.00019964,2]
[359173335,1745772633030,-500.0,0.00019964,2]
[359173336,1745772633040,-553.68,0.00019964,2]
[359173337,1745772633049,-480.0,0.00019964,2]
[359173338,1745772633059,-480.0,0.00019964,2]
[359173339,1745772633069,-480.0,0.00019964,2]
[359173340,1745772633078,-480.0,0.00019964,2]
[359173341,1745772633088,-480.0,0.00019964,2]
[359173342,1745772633097,-500.0,0.00019964,2]
[359173343,1745772633107,-500.0,0.00019964,2]
[359173344,1745772633116,-500.0,0.00019964,2]
[359173345,1745772633126,-623.16,0.00019964,2]
[359173346,1745772633136,-480.0,0.00019964,2]
[359173347,1745772633146,-500.0,0.00019964,2]
[359173348,1745772633156,-480.0,0.00019964,2]
[359173349,1745772633165,-500.0,0.00019964,2]
[359173350,1745772633175,-480.0,0.00019964,2]
[359173351,1745772633185,-577.86947517,0.00019964,2]
[359173352,1745772633194,-500.0,0.00019964,2]
[359173353,1745772633204,-500.0,0.00019964,2]
[359173354,1745772633214,-480.0,0.00019964,2]
[359173355,1745772633224,-556.76,0.00019964,2]
[359173356,1745772633233,-480.0,0.00019964,2]
[359173357,1745772633243,-500.0,0.00019964,2]
[359173358,1745772633253,-500.0,0.00019964,2]
[359173359,1745772633263,-480.0,0.00019964,2]
[359173360,1745772633273,-500.0,0.00019964,2]
[359173361,1745772633283,-480.0,0.00019964,2]
[359173362,1745772633293,-523.08660264,0.00019964,2]
[359173363,1745772633302,-465.27401752,0.00019964,2]
[359173364,1745772633312,-538.86,0.00019964,2]
[359173365,1745772633322,-480.0,0.00019964,2]
[359173366,1745772633331,-500.0,0.00019964,2]
[359173367,1745772633342,-480.0,0.00019964,2]
[359173368,1745772633355,-480.0,0.00019964,2]
[359173369,1745772633365,-500.0,0.00019964,2]
[359173370,1745772633374,-500.0,0.00019964,2]
[359173371,1745772633388,-480.0,0.00019964,2]
[359173372,1745772633398,-500.0,0.00019964,2]
[359173373,1745772633407,-537.66,0.00019964,2]
[359173374,1745772633417,-510.26948559,0.00019964,2]
[359173375,1745772633428,-480.0,0.00019964,2]
[359173376,1745772633438,-500.0,0.00019964,2]
[359173377,1745772633448,-539.07,0.00019964,2]
[359173378,1745772633458,-480.0,0.00019964,2]
[359173379,1745772633469,-480.0,0.00019964,2]
[359173380,1745772633479,-500.0,0.00019964,2]
[359173381,1745772633488,-480.0,0.00019964,2]
[359173382,1745772633498,-500.0,0.00019964,2]
[359173383,1745772633507,-500.0,0.00019964,2]
[359173384,1745772633517,-500.0,0.00019964,2]
[359173385,1745772633526,-480.0,0.00019964,2]
[359173386,1745772633535,-480.0,0.00019964,2]
[359173387,1745772633545,-500.0,0.00019964,2]
[359173388,1745772633555,-500.0,0.00019964,2]
[359173389,1745772633564,-500.0,0.00019964,2]
[359173390,1745772633574,-500.0,0.00019964,2]
[359173391,1745772633584,-480.0,0.00019964,2]
[359173392,1745772633594,-500.0,0.00019964,2]
[359173393,1745772633604,-533.63,0.00019964,2]
[359173394,1745772633613,-500.0,0.00019964,2]
[359173395,1745772633623,-500.0,0.00019964,2]
[359173396,1745772633632,-568.01290629,0.00019964,2]
[359173397,1745772633643,-500.0,0.00019964,2]
[359173398,1745772633653,-500.0,0.00019964,2]
[359173399,1745772633662,-505.00724878,0.00019964,2]
[359173400,1745772633672,-196.23811858,0.00019964,2]
[359173401,1745772633681,-500.0,0.00019964,2]
[359173402,1745772633691,-500.0,0.00019964,2]
[359173403,1745772633700,-500.0,0.00019964,2]
[359173404,1745772633709,-500.0,0.00019964,2]
[359173405,1745772633719,-516.38286458,0.00019964,2]
[359173406,1745772633729,-500.0,0.00019964,2]
[359173407,1745772633739,-480.0,0.00019964,2]
[359173408,1745772633748,-624.23420011,0.00019964,2]
[359173409,1745772633758,-586.33260036,0.00019964,2]
[359173410,1745772633767,-500.0,0.00019964,2]
[359173411,1745772633777,-518.60948234,0.00019964,2]
[359173412,1745772633787,-512.21198172,0.00019964,2]
[359173413,1745772633796,-500.0,0.00019964,2]
[359173414,1745772633805,-500.0,0.00019964,2]
[359173415,1745772633815,-500.0,0.00019964,2]
[359173416,1745772633824,-500.0,0.00019964,2]
[359173417,1745772633834,-557.53,0.00019964,2]
[359173418,1745772633844,-500.0,0.00019964,2]
[359173419,1745772633854,-500.0,0.00019964,2]
[359173420,1745772633864,-467.13888675,0.00019964,2]
[359173421,1745772633873,-500.0,0.00019964,2]
[359173422,1745772633883,-500.0,0.00019964,2]
[359173423,1745772633893,-500.0,0.00019964,2]
[359173424,1745772633903,-508.72828859,0.00019964,2]
[359173425,1745772633913,-500.0,0.00019964,2]
[359173426,1745772633922,-515.20281334,0.00019964,2]
[359173427,1745772633931,-506.28360726,0.00019964,2]
[359173428,1745772633941,-500.0,0.00019964,2]
[359173429,1745772633951,-480.0,0.00019964,2]
[359173430,1745772633960,-480.0,0.00019964,2]
[359173431,1745772633970,-480.0,0.00019964,2]
[359173432,1745772633980,-500.0,0.00019964,2]
[359173433,1745772633990,-500.0,0.00019964,2]
[359173434,1745772634000,-500.0,0.00019964,2]
[359173435,1745772634009,-500.0,0.00019964,2]
[359173436,1745772634020,-512.91350101,0.00019964,2]
[359173437,1745772634030,-500.0,0.00019964,2]
[359173438,1745772634039,-500.0,0.00019964,2]
[359173439,1745772634049,-500.0,0.00019964,2]
[359173440,1745772634060,-500.0,0.00019964,2]
[359173441,1745772634070,-593.44,0.00019964,2]
[359173442,1745772634080,-537.19176293,0.00019964,2]
[359173443,1745772634089,-500.0,0.00019964,2]
[359173444,1745772634099,-500.0,0.00019964,2]
[359173445,1745772634109,-618.52,0.00019964,2]
[359173446,1745772634120,-480.0,0.00019964,2]
[359173447,1745772634130,-500.0,0.00019964,2]
[359173448,1745772634140,-319.84,0.00019964,2]
[359173449,1745772634150,-538.7876967,0.00019964,2]
[359173450,1745772634160,-480.0,0.00019964,2]
[359173451,1745772634171,-412.64488206,0.00019964,2]
[359173452,1745772634180,-500.0,0.00019964,2]
[359173453,1745772634190,-500.0,0.00019964,2]
[359173454,1745772634200,-500.0,0.00019964,2]
[359173455,1745772634210,-500.0,0.00019964,2]
[359173456,1745772634220,-500.0,0.00019964,2]
[359173457,1745772634229,-500.0,0.00019964,2]
[359173458,1745772634239,-398.02495415,0.00019964,2]
[359173459,1745772634249,-500.0,0.00019964,2]
[359173460,1745772634259,-500.0,0.00019964,2]
[359173461,1745772634269,-409.64290624,0.00019964,2]
[359173462,1745772634278,-480.0,0.00019964,2]
[359173463,1745772634287,-500.0,0.00019964,2]
[359173464,1745772634297,-500.0,0.00019964,2]
[359173465,1745772634307,-480.0,0.00019964,2]
[359173466,1745772634316,-500.0,0.00019964,2]
[359173467,1745772634326,-500.0,0.00019964,2]
[359173468,1745772634336,-387.74849559,0.00019964,2]
[359173469,1745772634349,-500.0,0.00019964,2]
[359173470,1745772634359,-500.0,0.00019964,2]
[359173471,1745772634369,-505.57681234,0.00019964,2]
[359173472,1745772634379,-24919.44,0.00019964,2]
[359173473,1745772634388,-567.32600335,0.00019964,2]
[359173474,1745772634398,-512.13106415,0.00019964,2]
[359173475,1745772634408,-480.0,0.00019964,2]
[359173476,1745772634417,-500.0,0.00019964,2]
[359173477,1745772634427,-500.0,0.00019964,2]
[359173478,1745772634436,-500.0,0.00019964,2]
[359173479,1745772634446,-480.0,0.00019964,2]
[359173480,1745772634455,-480.0,0.00019964,2]
[359173481,1745772634465,-562.67,0.00019964,2]
[359173482,1745772634475,-554.82337981,0.00019964,2]
[359173483,1745772634485,-500.0,0.00019964,2]
[359173484,1745772634494,-4616.1,0.00019964,2]
[359173485,1745772634504,-514.02401722,0.00019964,2]
[359173486,1745772634513,-480.0,0.00019964,2]
[359173487,1745772634523,-2173.3,0.00019964,2]
[359173488,1745772634533,-480.0,0.00019964,2]
[359173489,1745772634542,-500.0,0.00019964,2]
[359173490,1745772634552,-475.51152367,0.00019964,2]
[359173491,1745772634562,-480.0,0.00019964,2]
[359173492,1745772634572,-500.0,0.00019964,2]
[359173493,1745772634581,-813.03,0.00019964,2]
[359173494,1745772634591,-480.0,0.00019964,2]
[359173495,1745772634601,-480.0,0.00019964,2]
[359173496,1745772634610,-480.0,0.00019964,2]
[359173497,1745772634619,-480.0,0.00019964,2]
[359173498,1745772634630,-447.57946576,0.00019964,2]
[359173499,1745772634640,-500.0,0.00019964,2]
[359173500,1745772634650,-500.0,0.00019964,2]
[359173501,1745772634659,-500.0,0.00019964,2]
[359173502,1745772634669,-480.0,0.00019964,2]
[359173503,1745772634679,-500.0,0.00019964,2]
[359173504,1745772634688,-500.0,0.00019964,2]
[359173505,1745772634698,-480.0,0.00019964,2]
[359173506,1745772634708,-480.0,0.00019964,2]
[359173507,1745772634719,-500.0,0.00019964,2]
[359173508,1745772634729,-500.0,0.00019964,2]
[359173509,1745772634739,-513.15636531,0.00019964,2]
[359173510,1745772634749,-237.1184434,0.00019964,2]
[359173511,1745772634758,-480.0,0.00019964,2]
[359173512,1745772634768,-500.0,0.00019964,2]
[359173513,1745772634777,-480.0,0.00019964,2]
[359173514,1745772634787,-514.16,0.00019964,2]
[359173515,1745772634796,-500.0,0.00019964,2]
[359173516,1745772634805,-1411.88,0.00019964,2]
[359173517,1745772634814,-480.0,0.00019964,2]
[359173518,1745772634823,-500.0,0.00019964,2]
[359173519,1745772634832,-500.0,0.00019964,2]
[359173520,1745772634842,-519.94669392,0.00019964,2]
[359173521,1745772634851,-510.31779385,0.00019964,2]
[359173522,1745772634860,-522.03160971,0.00019964,2]
[359173523,1745772634869,-500.0,0.00019964,2]
[359173524,1745772634879,-480.0,0.00019964,2]
[359173525,1745772634888,-507.10899895,0.00019964,2]
[359173526,1745772634897,-219.03813013,0.00019964,2]
[359173527,1745772634906,-500.0,0.00019964,2]
[359173528,1745772634915,-551.69587147,0.00019964,2]
[359173529,1745772634924,-500.0,0.00019964,2]
[359173530,1745772634934,-531.2644988,0.00019964,2]
[359173531,1745772634945,-500.0,0.00019964,2]
[359173532,1745772634956,-500.0,0.00019964,2]
[359173533,1745772634965,-500.0,0.00019964,2]
[359173534,1745772634975,-480.0,0.00019964,2]
[359173535,1745772634984,-480.0,0.00019964,2]
[359173536,1745772634994,-500.0,0.00019964,2]
[359173537,1745772635003,-508.31642087,0.00019964,2]
[359173538,1745772635012,-500.0,0.00019964,2]
[359173539,1745772635022,-480.0,0.00019964,2]
[359173540,1745772635031,-502.75267663,0.00019964,2]
[359173541,1745772635041,-619.23,0.00019964,2]
[359173542,1745772635050,-480.0,0.00019964,2]
[359173543,1745772635059,-500.0,0.00019964,2]
[359173544,1745772635069,-512.94455689,0.00019964,2]
[359173545,1745772635078,-480.0,0.00019964,2]
[359173546,1745772635087,-24279.41,0.00019964,2]
[359173547,1745772635096,-500.0,0.00019964,2]
[359173548,1745772635106,-480.0,0.00019964,2]
[359173549,1745772635115,-480.0,0.00019964,2]
[359173550,1745772635124,-480.0,0.00019964,2]
[359173551,1745772635134,-480.0,0.00019964,2]
[359173552,1745772635143,-168.47152632,0.00019964,2]
[359173553,1745772635152,-480.0,0.00019964,2]
[359173554,1745772635162,-480.0,0.00019964,2]
[359173555,1745772635172,-500.0,0.00019964,2]
[359173556,1745772635181,-5726.62,0.00019964,2]
[359173557,1745772635190,-480.0,0.00019964,2]
[359173558,1745772635200,-1721.21,0.00019964,2]
[359173559,1745772635209,-480.0,0.00019964,2]
[359173560,1745772635220,-480.0,0.00019964,2]
[359173561,1745772635229,-480.0,0.00019964,2]
[359173562,1745772635238,-480.0,0.00019964,2]
[359173563,1745772635247,-480.0,0.00019964,2]
[359173564,1745772635257,-480.0,0.00019964,2]
[359173565,1745772635266,-500.0,0.00019964,2]
[359173566,1745772635275,-528.44891615,0.00019964,2]
[359173567,1745772635284,-480.0,0.00019964,2]
[359173568,1745772635293,-480.0,0.00019964,2]
[359173569,1745772635302,-520.0,0.00019964,2]
[359173570,1745772635311,-480.0,0.00019964,2]
[359173571,1745772635320,-480.0,0.00019964,2]
[359173572,1745772635330,-701.59,0.00019964,2]
[359173573,1745772635339,-480.0,0.00019964,2]
[359173574,1745772635353,-480.0,0.00019964,2]
[359173575,1745772635362,-480.0,0.00019964,2]
[359173576,1745772635371,-500.0,0.00019964,2]
[359173577,1745772635380,-500.0,0.00019964,2]
[359173578,1745772635390,-480.0,0.00019964,2]
[359173579,1745772635400,-480.0,0.00019964,2]
[359173580,1745772635409,-480.0,0.00019964,2]
[359173581,1745772635418,-480.0,0.00019964,2]
[359173582,1745772635429,-480.0,0.00019964,2]
[359173583,1745772635438,-480.0,0.00019964,2]
[359173584,1745772635448,-1000.0,0.00019964,2]
[359173585,1745772635457,-1253.5,0.00019964,2]
[359173586,1745772635466,-480.0,0.00019964,2]
[359173587,1745772635475,-480.0,0.00019964,2]
[359173588,1745772635484,-480.0,0.00019964,2]
[359173589,1745772635493,-480.0,0.00019964,2]
[359173590,1745772635502,-1155.27,0.00019964,2]
[359173591,1745772635511,-1070.43,0.00019964,2]
[359173592,1745772635521,-4224.2,0.00019964,2]
[359173593,1745772635530,-811.45,0.00019964,2]
[359173594,1745772635539,-814.09,0.00019964,2]
[359173595,1745772635548,-480.0,0.00019964,2]
[359173596,1745772635558,-480.0,0.00019964,2]
[359173597,1745772635567,-480.0,0.00019964,2]
[359173598,1745772635576,-480.0,0.00019964,2]
[359173599,1745772635585,-480.0,0.00019964,2]
[359173600,1745772635594,-1400.38,0.00019964,2]
[359173601,1745772635603,-480.0,0.00019964,2]
[359173602,1745772635612,-161.06389686,0.00019964,2]